[Event "Early-Titled-Tuesday-Blitz-May-14-2024"]
[Site "Chess.com"]
[Date "2024.05.14"]
[Round "8"]
[White "abelmat"]
[Black "nitpicker"]
[Result "0-1"]
[WhiteElo "2015"]
[BlackElo "2278"]
[TimeControl "180+1"]
[EndTime "9:30:33 PDT"]
[Termination "nitpicker won on time"]

1. d4 {[%clk 0:03:00.9]} 1... Nf6 {[%clk 0:02:58.5]} 2. c4 {[%clk 0:02:59.5]}
2... e6 {[%clk 0:02:58.1]} 3. Nf3 {[%clk 0:02:58.2]} 3... d5 {[%clk 0:02:55.8]}
4. Nc3 {[%clk 0:02:58.2]} 4... Bb4 {[%clk 0:02:55.8]} 5. Qa4+ {[%clk 0:02:56.8]}
5... Nc6 {[%clk 0:02:55.4]} 6. a3 {[%clk 0:02:57.3]} 6... Be7 {[%clk 0:02:42.6]}
7. c5 {[%clk 0:02:54.8]} 7... O-O {[%clk 0:02:38.6]} 8. Bf4 {[%clk 0:02:52.8]}
8... Nh5 {[%clk 0:02:27.9]} 9. e3 {[%clk 0:02:50]} 9... Nxf4 {[%clk 0:02:26.7]}
10. exf4 {[%clk 0:02:50.9]} 10... Bd7 {[%clk 0:02:18.8]} 11. Qc2 {[%clk
0:02:48]} 11... b6 {[%clk 0:02:16.3]} 12. cxb6 {[%clk 0:02:38.1]} 12... axb6
{[%clk 0:02:15.1]} 13. Bd3 {[%clk 0:02:38.2]} 13... g6 {[%clk 0:02:06.5]} 14.
O-O {[%clk 0:02:33]} 14... Kg7 {[%clk 0:01:59.8]} 15. Bb5 {[%clk 0:02:29.9]}
15... Bd6 {[%clk 0:01:52.3]} 16. Bxc6 {[%clk 0:02:27.1]} 16... Bxc6 {[%clk
0:01:51.3]} 17. Ne5 {[%clk 0:02:24.5]} 17... Bb7 {[%clk 0:01:46.1]} 18. Nb5
{[%clk 0:02:19.1]} 18... Ba6 {[%clk 0:01:39.9]} 19. a4 {[%clk 0:02:17.7]} 19...
Bxb5 {[%clk 0:01:33.7]} 20. axb5 {[%clk 0:02:17.3]} 20... Bxe5 {[%clk
0:01:34.3]} 21. fxe5 {[%clk 0:02:14.4]} 21... Qd7 {[%clk 0:01:34.9]} 22. Qc6
{[%clk 0:02:05]} 22... Qxc6 {[%clk 0:01:25.1]} 23. bxc6 {[%clk 0:02:05.8]} 23...
f6 {[%clk 0:01:25.7]} 24. f4 {[%clk 0:01:57.7]} 24... Kf7 {[%clk 0:01:25.2]} 25.
Kf2 {[%clk 0:01:42]} 25... Ke7 {[%clk 0:01:24.1]} 26. Ke3 {[%clk 0:01:40.8]}
26... Rfb8 {[%clk 0:01:22.6]} 27. Kd3 {[%clk 0:01:28.6]} 27... b5 {[%clk
0:01:22.8]} 28. Kc3 {[%clk 0:01:27.4]} 28... Rxa1 {[%clk 0:01:20.9]} 29. Rxa1
{[%clk 0:01:26.2]} 29... Rb6 {[%clk 0:01:21.6]} 30. Kb4 {[%clk 0:00:36.4]} 30...
Rxc6 {[%clk 0:01:20.9]} 31. Kb3 {[%clk 0:00:17.9]} 31... Rc4 {[%clk 0:01:19.2]}
32. Rd1 {[%clk 0:00:17.3]} 32... fxe5 {[%clk 0:01:17.5]} 33. fxe5 {[%clk
0:00:18.2]} 33... c5 {[%clk 0:01:04.3]} 34. dxc5 {[%clk 0:00:17.8]} 34... Rxc5
{[%clk 0:01:05.2]} 35. Kb4 {[%clk 0:00:17.4]} 35... Rc2 {[%clk 0:01:05]} 36. b3
{[%clk 0:00:14]} 36... Rxg2 {[%clk 0:01:04.2]} 37. Kxb5 {[%clk 0:00:13.8]} 37...
Rxh2 {[%clk 0:01:04.5]} 38. b4 {[%clk 0:00:14.7]} 38... g5 {[%clk 0:00:59.7]}
39. Ka6 {[%clk 0:00:13.4]} 39... g4 {[%clk 0:00:58.6]} 40. b5 {[%clk 0:00:13.3]}
40... Ra2+ {[%clk 0:00:54.4]} 41. Kb7 {[%clk 0:00:12.7]} 41... g3 {[%clk
0:00:53.4]} 42. b6 {[%clk 0:00:12]} 42... h5 {[%clk 0:00:52.4]} 43. Kc8 {[%clk
0:00:08.1]} 43... h4 {[%clk 0:00:51.9]} 44. b7 {[%clk 0:00:08]} 44... Rb2 {[%clk
0:00:52.1]} 45. Rh1 {[%clk 0:00:04.1]} 45... g2 {[%clk 0:00:50.8]} 46. Rxh4
{[%clk 0:00:01.6]} 46... g1=Q {[%clk 0:00:49]} 47. Rh7+ {[%clk 0:00:02]} 47...
Kf8 {[%clk 0:00:48.7]} 0-1

[Event "Early-Titled-Tuesday-Blitz-May-14-2024"]
[Site "Chess.com"]
[Date "2024.05.14"]
[Round "8"]
[White "Vasily_IM"]
[Black "PeshkaCh"]
[Result "0-1"]
[WhiteElo "2603"]
[BlackElo "2864"]
[TimeControl "180+1"]
[EndTime "9:30:38 PDT"]
[Termination "PeshkaCh won by resignation"]

1. d4 {[%clk 0:03:00.9]} 1... Nf6 {[%clk 0:02:59.6]} 2. c4 {[%clk 0:03:00.5]}
2... e6 {[%clk 0:03:00]} 3. Nc3 {[%clk 0:03:00.2]} 3... d5 {[%clk 0:03:00.7]} 4.
cxd5 {[%clk 0:03:00.1]} 4... exd5 {[%clk 0:03:01.6]} 5. Bg5 {[%clk 0:03:00.3]}
5... Be7 {[%clk 0:03:02.3]} 6. e3 {[%clk 0:03:00.5]} 6... O-O {[%clk 0:03:03.1]}
7. Bd3 {[%clk 0:03:00.7]} 7... c6 {[%clk 0:03:03.8]} 8. Qc2 {[%clk 0:03:00.4]}
8... h6 {[%clk 0:03:04.2]} 9. Bh4 {[%clk 0:03:00.2]} 9... Nh5 {[%clk 0:03:04.9]}
10. Bxe7 {[%clk 0:02:59.4]} 10... Qxe7 {[%clk 0:03:05.8]} 11. Nf3 {[%clk
0:02:58.2]} 11... Nf4 {[%clk 0:03:03.5]} 12. O-O {[%clk 0:02:58.2]} 12... Nxd3
{[%clk 0:03:04.1]} 13. Qxd3 {[%clk 0:02:59]} 13... a5 {[%clk 0:03:04.7]} 14.
Rab1 {[%clk 0:02:56.9]} 14... Na6 {[%clk 0:03:04.9]} 15. a3 {[%clk 0:02:56.4]}
15... Nc7 {[%clk 0:03:05.5]} 16. b4 {[%clk 0:02:55.9]} 16... axb4 {[%clk
0:03:06.4]} 17. axb4 {[%clk 0:02:55.9]} 17... Ra3 {[%clk 0:03:07]} 18. Qc2
{[%clk 0:02:54.1]} 18... Bf5 {[%clk 0:02:40.5]} 19. Qxf5 {[%clk 0:02:53.2]}
19... Rxc3 {[%clk 0:02:40.5]} 20. Ne5 {[%clk 0:02:43.9]} 20... Ra8 {[%clk
0:02:38.3]} 21. h3 {[%clk 0:02:33.2]} 21... g6 {[%clk 0:02:18.9]} 22. Qf4 {[%clk
0:02:31]} 22... Kg7 {[%clk 0:02:14.8]} 23. Ng4 {[%clk 0:02:27.4]} 23... Rh8
{[%clk 0:01:27.5]} 24. Rfe1 {[%clk 0:02:19.7]} 24... h5 {[%clk 0:01:22.9]} 25.
Ne5 {[%clk 0:02:17.5]} 25... Ne6 {[%clk 0:01:16.9]} 26. Qg3 {[%clk 0:02:11.4]}
26... Ra8 {[%clk 0:00:33.3]} 27. b5 {[%clk 0:01:59.1]} 27... cxb5 {[%clk
0:00:33.7]} 28. Rxb5 {[%clk 0:01:56]} 28... Nxd4 {[%clk 0:00:34.3]} 29. Rxd5
{[%clk 0:01:47.9]} 29... Ra1 {[%clk 0:00:23.6]} 30. Rxd4 {[%clk 0:00:47.6]}
30... Rxe1+ {[%clk 0:00:23.2]} 31. Kh2 {[%clk 0:00:48.3]} 31... Rcc1 {[%clk
0:00:21.7]} 32. Qf4 {[%clk 0:00:41.8]} 32... h4 {[%clk 0:00:21.7]} 33. g3 {[%clk
0:00:31]} 33... hxg3+ {[%clk 0:00:22]} 34. Kxg3 {[%clk 0:00:30.1]} 34... Rg1+
{[%clk 0:00:21.9]} 35. Kf3 {[%clk 0:00:29.8]} 35... Rcd1 {[%clk 0:00:22.6]} 36.
Nd3 {[%clk 0:00:22.9]} 36... Qe6 {[%clk 0:00:19]} 37. h4 {[%clk 0:00:18.5]}
37... Qh3+ {[%clk 0:00:16.5]} 38. Ke2 {[%clk 0:00:18.6]} 38... Qf1+ {[%clk
0:00:14]} 39. Kf3 {[%clk 0:00:18.6]} 39... Rxd3 {[%clk 0:00:09]} 40. Qe5+ {[%clk
0:00:18.4]} 40... Kh7 {[%clk 0:00:09.2]} 41. Qd5 {[%clk 0:00:16.6]} 41... Qg2+
{[%clk 0:00:08.9]} 0-1

[Event "Early-Titled-Tuesday-Blitz-May-14-2024"]
[Site "Chess.com"]
[Date "2024.05.14"]
[Round "8"]
[White "CD3m"]
[Black "Pumpkin_in_moonlight"]
[Result "1-0"]
[WhiteElo "2351"]
[BlackElo "2187"]
[TimeControl "180+1"]
[EndTime "9:30:39 PDT"]
[Termination "CD3m won on time"]

1. e4 {[%clk 0:02:52.4]} 1... c5 {[%clk 0:02:58.4]} 2. Nf3 {[%clk 0:02:52.2]}
2... a6 {[%clk 0:02:50.7]} 3. d3 {[%clk 0:02:51.5]} 3... g6 {[%clk 0:02:48]} 4.
g3 {[%clk 0:02:49.5]} 4... Bg7 {[%clk 0:02:48.2]} 5. Bg2 {[%clk 0:02:49.7]} 5...
Nc6 {[%clk 0:02:44.7]} 6. h4 {[%clk 0:02:44.7]} 6... Nf6 {[%clk 0:02:37.5]} 7.
O-O {[%clk 0:02:34.7]} 7... d6 {[%clk 0:02:33.3]} 8. Re1 {[%clk 0:02:27.8]} 8...
O-O {[%clk 0:02:27.9]} 9. Nbd2 {[%clk 0:02:25.1]} 9... Ng4 {[%clk 0:01:49]} 10.
Nf1 {[%clk 0:02:22.7]} 10... b5 {[%clk 0:01:37.6]} 11. N1h2 {[%clk 0:02:08.3]}
11... Nxh2 {[%clk 0:01:33.4]} 12. Nxh2 {[%clk 0:02:09.2]} 12... Bb7 {[%clk
0:01:32.4]} 13. h5 {[%clk 0:02:06.9]} 13... b4 {[%clk 0:01:16.6]} 14. f4 {[%clk
0:01:43.4]} 14... Nd4 {[%clk 0:01:09]} 15. a4 {[%clk 0:01:26.5]} 15... a5 {[%clk
0:01:06.2]} 16. Rb1 {[%clk 0:01:20.3]} 16... f5 {[%clk 0:00:49.1]} 17. c3 {[%clk
0:00:56.7]} 17... Nc6 {[%clk 0:00:42.4]} 18. Bd2 {[%clk 0:00:53.3]} 18... Qd7
{[%clk 0:00:38.4]} 19. Bh3 {[%clk 0:00:39.7]} 19... e6 {[%clk 0:00:35.2]} 20. g4
{[%clk 0:00:36.5]} 20... Ne7 {[%clk 0:00:33.4]} 21. hxg6 {[%clk 0:00:33.5]}
21... hxg6 {[%clk 0:00:33.1]} 22. gxf5 {[%clk 0:00:34.1]} 22... exf5 {[%clk
0:00:32.1]} 23. Qb3+ {[%clk 0:00:33.9]} 23... Rf7 {[%clk 0:00:30.9]} 24. Nf3
{[%clk 0:00:32.3]} 24... Bf6 {[%clk 0:00:20.1]} 25. Kf2 {[%clk 0:00:27.1]} 25...
Kg7 {[%clk 0:00:17.5]} 26. Rg1 {[%clk 0:00:27.4]} 26... Rh8 {[%clk 0:00:14.6]}
27. Rg3 {[%clk 0:00:28]} 27... d5 {[%clk 0:00:11.7]} 28. Rbg1 {[%clk 0:00:27.5]}
28... fxe4 {[%clk 0:00:09.5]} 29. Rxg6+ {[%clk 0:00:27.2]} 29... Nxg6 {[%clk
0:00:09.1]} 30. Bxd7 {[%clk 0:00:27.7]} 30... c4 {[%clk 0:00:06.4]} 31. dxc4
{[%clk 0:00:27.2]} 31... exf3 {[%clk 0:00:05]} 32. Bf5 {[%clk 0:00:25.4]} 32...
Rh2+ {[%clk 0:00:03.7]} 33. Kf1 {[%clk 0:00:24.4]} 33... Ba6 {[%clk 0:00:02.5]}
34. Rxg6+ {[%clk 0:00:23.5]} 34... Kf8 {[%clk 0:00:02.8]} 35. Bd3 {[%clk
0:00:22.1]} 35... Rxd2 {[%clk 0:00:01.3]} 36. Ke1 {[%clk 0:00:12.8]} 36... Rxd3
{[%clk 0:00:01.5]} 37. cxd5 {[%clk 0:00:12.3]} 37... Re3+ {[%clk 0:00:01]} 38.
Kd1 {[%clk 0:00:12.1]} 38... Rd3+ {[%clk 0:00:00.9]} 39. Kc2 {[%clk 0:00:12]}
39... Re3 {[%clk 0:00:00.6]} 40. d6 {[%clk 0:00:11.4]} 1-0

[Event "Early-Titled-Tuesday-Blitz-May-14-2024"]
[Site "Chess.com"]
[Date "2024.05.14"]
[Round "8"]
[White "Firouzja2003"]
[Black "lilleper1"]
[Result "1-0"]
[WhiteElo "3191"]
[BlackElo "2921"]
[TimeControl "180+1"]
[EndTime "9:30:40 PDT"]
[Termination "Firouzja2003 won by resignation"]

1. e4 {[%clk 0:03:00.9]} 1... e5 {[%clk 0:02:58.6]} 2. Nf3 {[%clk 0:03:01]} 2...
Nc6 {[%clk 0:02:59]} 3. Bb5 {[%clk 0:03:01.1]} 3... a6 {[%clk 0:02:59.4]} 4. Ba4
{[%clk 0:03:01.6]} 4... Nf6 {[%clk 0:02:59.7]} 5. d3 {[%clk 0:02:59.6]} 5... b5
{[%clk 0:02:58.3]} 6. Bb3 {[%clk 0:02:59.8]} 6... Bc5 {[%clk 0:02:58.8]} 7. c3
{[%clk 0:03:00.2]} 7... d6 {[%clk 0:02:54.8]} 8. Nbd2 {[%clk 0:02:59.9]} 8... h6
{[%clk 0:02:54.8]} 9. Nf1 {[%clk 0:02:59.9]} 9... O-O {[%clk 0:02:52.4]} 10. h3
{[%clk 0:03:00.1]} 10... Be6 {[%clk 0:02:45.7]} 11. Ng3 {[%clk 0:02:54.9]} 11...
Bxb3 {[%clk 0:02:41.1]} 12. axb3 {[%clk 0:02:54.9]} 12... a5 {[%clk 0:02:41]}
13. O-O {[%clk 0:02:55]} 13... Bb6 {[%clk 0:02:40.2]} 14. Nh2 {[%clk 0:02:45.4]}
14... Qd7 {[%clk 0:02:29]} 15. Qf3 {[%clk 0:02:35.6]} 15... Qe6 {[%clk
0:02:27.5]} 16. Nf5 {[%clk 0:02:35.8]} 16... Kh7 {[%clk 0:02:22.7]} 17. Be3
{[%clk 0:02:22.9]} 17... Ng8 {[%clk 0:02:04.3]} 18. Bxb6 {[%clk 0:02:09]} 18...
cxb6 {[%clk 0:02:05.2]} 19. Qg4 {[%clk 0:02:09]} 19... g6 {[%clk 0:01:59.9]} 20.
Ne3 {[%clk 0:02:09.6]} 20... Nge7 {[%clk 0:01:50.7]} 21. Qxe6 {[%clk 0:01:55.3]}
21... fxe6 {[%clk 0:01:50.7]} 22. g3 {[%clk 0:01:56]} 22... d5 {[%clk
0:01:44.6]} 23. Kg2 {[%clk 0:01:49.2]} 23... d4 {[%clk 0:01:37.1]} 24. Nc2
{[%clk 0:01:48]} 24... Rfd8 {[%clk 0:01:31]} 25. c4 {[%clk 0:01:45.1]} 25... b4
{[%clk 0:01:23.4]} 26. Ne1 {[%clk 0:01:40]} 26... Nc8 {[%clk 0:01:20.4]} 27.
Nef3 {[%clk 0:01:38.9]} 27... h5 {[%clk 0:01:17.7]} 28. Ng5+ {[%clk 0:01:38.4]}
28... Kg8 {[%clk 0:01:11.4]} 29. Nxe6 {[%clk 0:01:37.2]} 29... Rd7 {[%clk
0:01:10.1]} 30. f4 {[%clk 0:01:32.7]} 30... Nd6 {[%clk 0:01:08.7]} 31. Nf3
{[%clk 0:01:32.8]} 31... Re8 {[%clk 0:01:03.1]} 32. fxe5 {[%clk 0:01:23.6]}
32... Nxe4 {[%clk 0:00:58.6]} 33. Nf4 {[%clk 0:00:59.6]} 33... Nc5 {[%clk
0:00:43.7]} 34. Rae1 {[%clk 0:01:00.2]} 34... Kg7 {[%clk 0:00:38.8]} 35. e6
{[%clk 0:00:54.3]} 35... Rde7 {[%clk 0:00:35.9]} 36. Ng5 {[%clk 0:00:54.5]}
36... Rf8 {[%clk 0:00:20.4]} 37. Nd5 {[%clk 0:00:52.3]} 37... Rxf1 {[%clk
0:00:18.1]} 38. Rxf1 {[%clk 0:00:53.2]} 38... Rxe6 {[%clk 0:00:13.1]} 39. Nxe6+
{[%clk 0:00:38]} 39... Nxe6 {[%clk 0:00:14]} 40. Rf6 {[%clk 0:00:36.9]} 40...
Ncd8 {[%clk 0:00:09.3]} 41. Kf3 {[%clk 0:00:37.2]} 41... Nc5 {[%clk 0:00:06.5]}
42. Ke2 {[%clk 0:00:36.8]} 42... Nde6 {[%clk 0:00:05.4]} 43. h4 {[%clk
0:00:33.6]} 43... Kg8 {[%clk 0:00:04.2]} 44. Rxg6+ {[%clk 0:00:33.3]} 44... Kf7
{[%clk 0:00:02.6]} 45. Rf6+ {[%clk 0:00:33.8]} 45... Kg7 {[%clk 0:00:03.5]} 46.
Kd1 {[%clk 0:00:32.1]} 46... Kh7 {[%clk 0:00:02.2]} 47. Kc2 {[%clk 0:00:32]}
47... Kg7 {[%clk 0:00:01.7]} 48. Rf5 {[%clk 0:00:31.3]} 48... Kg6 {[%clk
0:00:01.9]} 49. Re5 {[%clk 0:00:31.8]} 49... Nd8 {[%clk 0:00:00.9]} 50. Nf4+
{[%clk 0:00:31.9]} 1-0

[Event "Early-Titled-Tuesday-Blitz-May-14-2024"]
[Site "Chess.com"]
[Date "2024.05.14"]
[Round "8"]
[White "Zhigalko_Sergei"]
[Black "Arhan_Anand"]
[Result "1-0"]
[WhiteElo "2850"]
[BlackElo "2636"]
[TimeControl "180+1"]
[EndTime "9:30:41 PDT"]
[Termination "Zhigalko_Sergei won by resignation"]

1. e4 {[%clk 0:03:00.9]} 1... c5 {[%clk 0:03:00.3]} 2. Nf3 {[%clk 0:03:01]} 2...
d6 {[%clk 0:03:00.5]} 3. d4 {[%clk 0:03:01.1]} 3... cxd4 {[%clk 0:03:01.4]} 4.
Qxd4 {[%clk 0:03:01.9]} 4... Nf6 {[%clk 0:03:01.1]} 5. Nc3 {[%clk 0:03:01.8]}
5... a6 {[%clk 0:03:01.1]} 6. Bc4 {[%clk 0:03:01.8]} 6... Nc6 {[%clk 0:03:00.9]}
7. Qd3 {[%clk 0:03:02.1]} 7... e6 {[%clk 0:03:01.3]} 8. Bf4 {[%clk 0:03:02]}
8... Qc7 {[%clk 0:02:55.4]} 9. O-O-O {[%clk 0:03:02.1]} 9... e5 {[%clk
0:02:54.8]} 10. Bg5 {[%clk 0:02:58.5]} 10... Nb4 {[%clk 0:02:53]} 11. Qe2 {[%clk
0:02:57.8]} 11... Be6 {[%clk 0:02:46.5]} 12. Bb3 {[%clk 0:02:53.2]} 12... Be7
{[%clk 0:02:42.2]} 13. Bxf6 {[%clk 0:02:50]} 13... gxf6 {[%clk 0:02:43]} 14. a3
{[%clk 0:02:30.8]} 14... Nc6 {[%clk 0:02:37.7]} 15. Nd5 {[%clk 0:02:29]} 15...
Qd8 {[%clk 0:02:35.7]} 16. Ne3 {[%clk 0:02:05.1]} 16... Qb6 {[%clk 0:02:26.1]}
17. Bd5 {[%clk 0:01:58.2]} 17... Rc8 {[%clk 0:02:19.7]} 18. Kb1 {[%clk 0:01:57]}
18... Na5 {[%clk 0:02:18.2]} 19. Nh4 {[%clk 0:01:48.5]} 19... Rc7 {[%clk
0:02:01.1]} 20. Nhf5 {[%clk 0:01:45.6]} 20... Bf8 {[%clk 0:02:01.3]} 21. Rd3
{[%clk 0:01:40.1]} 21... Rg8 {[%clk 0:01:54.8]} 22. Rhd1 {[%clk 0:01:39.1]}
22... Rd7 {[%clk 0:01:52.7]} 23. Qh5 {[%clk 0:01:29.5]} 23... Rg6 {[%clk
0:01:46.2]} 24. Qxh7 {[%clk 0:01:26.2]} 24... Bxf5 {[%clk 0:01:40.7]} 25. exf5
{[%clk 0:01:01.7]} 25... Rh6 {[%clk 0:01:39.9]} 26. Qg8 {[%clk 0:01:01.8]} 26...
Rh5 {[%clk 0:01:21.7]} 27. Ng4 {[%clk 0:00:39.4]} 27... Rxf5 {[%clk 0:01:19.8]}
28. Bxf7+ {[%clk 0:00:24.6]} 28... Rxf7 {[%clk 0:01:16.3]} 29. Nh6 {[%clk
0:00:24.9]} 29... Rc7 {[%clk 0:00:24.8]} 30. Qe6+ {[%clk 0:00:15.4]} 30... Be7
{[%clk 0:00:21.5]} 31. Nxf5 {[%clk 0:00:11.3]} 31... Nc4 {[%clk 0:00:21.9]} 32.
Rb3 {[%clk 0:00:07.9]} 32... Qxf2 {[%clk 0:00:21.1]} 33. Nxe7 {[%clk 0:00:07.3]}
33... Nxa3+ {[%clk 0:00:15.5]} 34. Rxa3 {[%clk 0:00:04.6]} 34... Qxc2+ {[%clk
0:00:15.1]} 35. Ka2 {[%clk 0:00:04.9]} 35... Rxe7 {[%clk 0:00:15.8]} 36. Qg8+
{[%clk 0:00:04.5]} 36... Kd7 {[%clk 0:00:16.2]} 37. Rdd3 {[%clk 0:00:03]} 37...
b5 {[%clk 0:00:15.4]} 38. Rdc3 {[%clk 0:00:03.2]} 1-0

[Event "Early-Titled-Tuesday-Blitz-May-14-2024"]
[Site "Chess.com"]
[Date "2024.05.14"]
[Round "8"]
[White "C_K_G"]
[Black "HajiyevKanan"]
[Result "1-0"]
[WhiteElo "2291"]
[BlackElo "2459"]
[TimeControl "180+1"]
[EndTime "9:30:42 PDT"]
[Termination "C_K_G won by checkmate"]

1. e4 {[%clk 0:02:48.1]} 1... c6 {[%clk 0:03:00]} 2. Nf3 {[%clk 0:02:46.9]} 2...
d5 {[%clk 0:03:00.9]} 3. Nc3 {[%clk 0:02:47.3]} 3... a6 {[%clk 0:03:01.5]} 4. d4
{[%clk 0:02:45.7]} 4... Bg4 {[%clk 0:03:01.5]} 5. e5 {[%clk 0:02:43.9]} 5... e6
{[%clk 0:03:01.1]} 6. h3 {[%clk 0:02:40.2]} 6... Bh5 {[%clk 0:03:01.4]} 7. Bd3
{[%clk 0:02:40.5]} 7... c5 {[%clk 0:03:01.3]} 8. g4 {[%clk 0:02:37.8]} 8... Bg6
{[%clk 0:03:00.5]} 9. Bxg6 {[%clk 0:02:36.1]} 9... hxg6 {[%clk 0:03:01.4]} 10.
Be3 {[%clk 0:02:31.5]} 10... cxd4 {[%clk 0:03:00.6]} 11. Nxd4 {[%clk 0:02:28.9]}
11... Qc7 {[%clk 0:03:01.1]} 12. f4 {[%clk 0:02:26.4]} 12... Bb4 {[%clk
0:02:56.8]} 13. Qd3 {[%clk 0:02:22.3]} 13... Ne7 {[%clk 0:02:57]} 14. a3 {[%clk
0:01:54.9]} 14... Bxc3+ {[%clk 0:02:55.8]} 15. bxc3 {[%clk 0:01:54]} 15... Nbc6
{[%clk 0:02:55.6]} 16. Nb3 {[%clk 0:01:48.7]} 16... Rc8 {[%clk 0:02:54.4]} 17.
Bc5 {[%clk 0:01:40]} 17... Nxe5 {[%clk 0:02:45.5]} 18. fxe5 {[%clk 0:01:27]}
18... Qxe5+ {[%clk 0:02:46.4]} 19. Qe3 {[%clk 0:01:17.5]} 19... Qxe3+ {[%clk
0:02:46.1]} 20. Bxe3 {[%clk 0:01:17.1]} 20... Rxc3 {[%clk 0:02:46.8]} 21. Kd2
{[%clk 0:01:16.8]} 21... Rc4 {[%clk 0:02:42.6]} 22. c3 {[%clk 0:01:14.2]} 22...
Nc6 {[%clk 0:02:38.1]} 23. a4 {[%clk 0:01:05.8]} 23... Kd7 {[%clk 0:02:29]} 24.
a5 {[%clk 0:00:55.2]} 24... Rc8 {[%clk 0:02:28.3]} 25. Rhf1 {[%clk 0:00:51.3]}
25... f6 {[%clk 0:02:27.4]} 26. Nc5+ {[%clk 0:00:38.4]} 26... Ke7 {[%clk
0:02:22.8]} 27. Nxb7 {[%clk 0:00:36.8]} 27... Ne5 {[%clk 0:02:23.3]} 28. Bd4
{[%clk 0:00:31.1]} 28... R8c7 {[%clk 0:02:23.6]} 29. Rab1 {[%clk 0:00:28.3]}
29... Nc6 {[%clk 0:02:05.2]} 30. Bc5+ {[%clk 0:00:24.5]} 30... Kd7 {[%clk
0:02:03.1]} 31. Ba3 {[%clk 0:00:22.6]} 31... Rd4+ {[%clk 0:01:59.7]} 32. cxd4
{[%clk 0:00:21.6]} 32... Nxd4 {[%clk 0:01:57.2]} 33. Nc5+ {[%clk 0:00:20.2]}
33... Kc8 {[%clk 0:01:54.4]} 34. Nxa6 {[%clk 0:00:19.8]} 34... Ra7 {[%clk
0:01:52.6]} 35. Rb8+ {[%clk 0:00:18.1]} 35... Kd7 {[%clk 0:01:53]} 36. Nc5+
{[%clk 0:00:17.1]} 36... Kc6 {[%clk 0:01:52.8]} 37. Re8 {[%clk 0:00:16.1]} 37...
Rxa5 {[%clk 0:01:51.7]} 38. Bb4 {[%clk 0:00:16.7]} 38... Ra2+ {[%clk 0:01:51.3]}
39. Kd3 {[%clk 0:00:17]} 39... e5 {[%clk 0:01:52]} 40. Re7 {[%clk 0:00:15.4]}
40... Kb5 {[%clk 0:01:52.2]} 41. Bc3 {[%clk 0:00:14.2]} 41... Nc6 {[%clk
0:01:47.1]} 42. Rxg7 {[%clk 0:00:13.3]} 42... Kxc5 {[%clk 0:01:47.5]} 43. Rxf6
{[%clk 0:00:13.5]} 43... e4+ {[%clk 0:01:40.7]} 44. Ke3 {[%clk 0:00:12.4]} 44...
Ra3 {[%clk 0:01:41]} 45. Rc7 {[%clk 0:00:10.9]} 45... Rxc3+ {[%clk 0:01:40.9]}
46. Ke2 {[%clk 0:00:10.3]} 46... Kb6 {[%clk 0:01:32.6]} 47. Rg7 {[%clk
0:00:04.9]} 47... Rxh3 {[%clk 0:01:25.8]} 48. Rgxg6 {[%clk 0:00:04.2]} 48... Rc3
{[%clk 0:01:26.6]} 49. g5 {[%clk 0:00:04]} 49... Kb5 {[%clk 0:01:26]} 50. Rxc6
{[%clk 0:00:03.2]} 50... Rxc6 {[%clk 0:01:25.9]} 51. Rxc6 {[%clk 0:00:03.2]}
51... Kxc6 {[%clk 0:01:23.8]} 52. g6 {[%clk 0:00:04.1]} 52... Kc5 {[%clk
0:01:24]} 53. g7 {[%clk 0:00:04.4]} 53... d4 {[%clk 0:01:24.7]} 54. g8=Q {[%clk
0:00:04.7]} 54... Kd6 {[%clk 0:01:24.3]} 55. Qg5 {[%clk 0:00:03.8]} 55... Ke6
{[%clk 0:01:24.3]} 56. Qh5 {[%clk 0:00:03.5]} 56... Kf6 {[%clk 0:01:24.6]} 57.
Kd2 {[%clk 0:00:03.9]} 57... Ke6 {[%clk 0:01:24.6]} 58. Kc2 {[%clk 0:00:04.4]}
58... e3 {[%clk 0:01:25]} 59. Kd3 {[%clk 0:00:04.5]} 59... Kf6 {[%clk
0:01:25.2]} 60. Kxd4 {[%clk 0:00:04.4]} 60... e2 {[%clk 0:01:25.9]} 61. Qxe2
{[%clk 0:00:04.1]} 61... Kf5 {[%clk 0:01:26.5]} 62. Qe5+ {[%clk 0:00:04]} 62...
Kg6 {[%clk 0:01:27.1]} 63. Qf4 {[%clk 0:00:04.3]} 63... Kg7 {[%clk 0:01:27.2]}
64. Ke5 {[%clk 0:00:05.2]} 64... Kg6 {[%clk 0:01:28.1]} 65. Ke6 {[%clk
0:00:05.6]} 65... Kh7 {[%clk 0:01:29]} 66. Qg5 {[%clk 0:00:04.9]} 66... Kh8
{[%clk 0:01:29.4]} 67. Kf7 {[%clk 0:00:05.6]} 67... Kh7 {[%clk 0:01:30]} 68.
Qg7# {[%clk 0:00:05.9]} 1-0